[Event "FIDE World Rapid-ch Open 2018"]
[White "Artemiev, Vladislav"]
[Black "Korobov, Anton"]
[Site "St. Petersburg"]
[Round "9.2"]
[Annotator "ChessBase"]
[Result "1-0"]
[Date "2018.12.27"]
[WhiteElo "2709"]
[BlackElo "2698"]
[PlyCount "97"]
[TimeControl "900+10"]

1. c4 {[%emt 0:0:0]} c6 {[%emt 0:0:0]} 2. e4 {[%emt 0:0:0]} d5 {[%emt 0:0:0]} 3. exd5 {[%emt 0:0:2]} Nf6 {[%emt 0:0:3]} 4. Nc3 {[%emt 0:0:2]} cxd5 {[%emt 0:0:2]} 5. d4 {[%emt 0:0:1]} e6 {[%emt 0:0:12]} 6. Nf3 {[%emt 0:0:3]
} Bb4 {[%emt 0:0:12]} 7. cxd5 {[%emt 0:0:6]} exd5 {[%emt 0:0:0]} 8. Bd3 {[%emt 0:1:33]} 0-0 {[%emt 0:0:12]} 9. 0-0 {[%emt 0:0:2]} h6 {[%emt 0:0:9]
} 10. Ne5 {[%emt 0:1:58]} Nc6 {[%emt 0:0:20]} 11. Nxc6 {[%emt 0:0:36]
} bxc6 {[%emt 0:0:1]} 12. Bf4 {[%emt 0:0:1]} Re8 {[%emt 0:0:0]} 13. Rc1 {[%emt 0:0:9]} Bd6 {[%emt 0:0:47]} 14. Bg3 {[%emt 0:0:58]} Rb8 {[%emt 0:1:8]} 15. Na4 {[%emt 0:0:32]} Bxg3 {[%emt 0:0:58]} 16. hxg3 {[%emt 0:0:2]
} Qd6 {[%emt 0:0:20]} 17. a3 {[%emt 0:0:25]} Bd7 {[%emt 0:0:0]} 18. b4 {[%emt 0:0:40]} Ne4 {[%emt 0:1:46]} 19. Nc5 {[%emt 0:2:48]} Nxc5 {[%emt 0:0:31]} 20. Rxc5 {[%emt 0:0:2]} Qf6 {[%emt 0:0:12]} 21. Qd2 {[%emt 0:0:29]
} g5 {[%emt 0:0:13]} 22. Ra5 {[%emt 0:1:36]} Rb7 {[%emt 0:0:0]} 23. Qc3 {[%emt 0:1:28]} Kg7 {[%emt 0:3:16]} 24. Ra6 {[%emt 0:2:1]} h5 {[%emt 0:0:25]} 25. b5 {[%emt 0:1:23]} Re6 {[%emt 0:0:7]} 26. bxc6 {[%emt 0:0:39]
} Rxc6 {[%emt 0:0:2]} 27. Rxc6 {[%emt 0:0:1]} Bxc6 {[%emt 0:0:0]} 28. Re1 {[%emt 0:0:4]} Bb5 {[%emt 0:1:9]} 29. Bc2 {[%emt 0:0:55]} Re7 {[%emt 0:0:30]} 30. Re5 {[%emt 0:0:1]} Rxe5 {[%emt 0:0:44]} 31. dxe5 {[%emt 0:0:1]
} Qc6 {[%emt 0:0:1]} 32. Qd2 {[%emt 0:0:1]} f6 {[%emt 0:0:0]} 33. exf6+ {[%emt 0:0:40]} Kxf6 {[%emt 0:0:1]} 34. Qd4+ {[%emt 0:0:1]} Kf7 {[%emt 0:0:9]} 35. Qxa7+ {[%emt 0:0:6]} Ke6 {[%emt 0:1:26]} 36. Bg6 {[%emt 0:0:1]
} Kd6 {[%emt 0:1:4]} 37. Qe3 {[%emt 0:0:34]} Qc4 {[%emt 0:0:0]} 38. Bxh5 {[%emt 0:0:34]} d4 {[%emt 0:0:28]} 39. Qxg5 {[%emt 0:0:1]} d3 {[%emt 0:0:2]} 40. Bf3 {[%emt 0:0:25]} Ba4 {[%emt 0:0:18]} 41. Qf6+ {[%emt 0:0:6]
} Kd7 {[%emt 0:0:12]} 42. Qg7+ {[%emt 0:0:21]} Kd6 {[%emt 0:0:0]} 43. Qh6+ {[%emt 0:0:5]} Kd7 {[%emt 0:0:16]} 44. Qe3 {[%emt 0:0:1]} Bc2 {[%emt 0:0:19]} 45. g4 {[%emt 0:0:39]} Qc3 {[%emt 0:0:10]} 46. g5 {[%emt 0:0:5]
} Qxa3 {[%emt 0:0:10]} 47. g6 {[%emt 0:0:16]} Qa1+ {[%emt 0:0:0]} 48. Kh2 {[%emt 0:0:1]} Qf6 {[%emt 0:0:14]} 49. g7 {[%emt 0:0:3]} 1-0

[Event "FIDE World Rapid-ch Open 2018"]
[White "Andreikin, Dmitry"]
[Black "Wang, Hao"]
[Site "St. Petersburg"]
[Round "9.3"]
[Annotator "RC"]
[Result "0-1"]
[Date "2018.12.27"]
[WhiteElo "2719"]
[BlackElo "2730"]
[PlyCount "114"]
[TimeControl "900+10"]

1. Nf3 {[%emt 0:0:0]} d5 {[%emt 0:0:0]} 2. e3 {[%emt 0:0:0]} Nf6 {[%emt 0:0:0]
} 3. c4 {[%emt 0:0:2]} e6 {[%emt 0:0:0]} 4. d4 {[%emt 0:0:0]} b6 {[%emt 0:0:10]} 5. Bd3 {[%emt 0:0:10]} Bd6 {[%emt 0:0:18]} 6. 0-0 {[%emt 0:0:14]
} 0-0 {[%emt 0:0:21]} 7. Nc3 {[%emt 0:0:47]} Bb7 {[%emt 0:0:0]} 8. Qe2 {[%emt 0:1:9]} Nbd7 {[%emt 0:1:36]} 9. e4 {[%emt 0:0:9]} dxe4 {[%emt 0:1:17]} 10. Nxe4 {[%emt 0:0:3]} Nxe4 {[%emt 0:0:30]} 11. Bxe4 {[%emt 0:0:2]
} Bxe4 {[%emt 0:0:2]} 12. Qxe4 {[%emt 0:0:2]} h6 {[%emt 0:0:0]} 13. Rd1 {[%emt 0:1:22]} Qe7 {[%emt 0:0:58]} 14. b3 {[%emt 0:1:19]} Nf6 {[%emt 0:1:14]} 15. Qe2 {[%emt 0:1:13]} a5 {[%emt 0:1:46]} 16. a4 {[%emt 0:0:0]} Rfd8 {[%emt 0:0:40]} 17. Bb2 {[%emt 0:0:11]} c6 {[%emt 0:1:20]} 18. Ne5 {[%emt 0:1:15]} Bxe5 {[%emt 0:1:14]} 19. Qxe5 {[%emt 0:1:26]} Qd6 {[%emt 0:1:19]
} 20. Qe2 {[%emt 0:1:52]} Qf4 {[%emt 0:0:25]} 21. Rd3 {[%emt 0:0:0]} b5 {[%emt 0:0:24]} 22. Rf3 {[%emt 0:0:38]} Qe4 {[%emt 0:0:18]} 23. Re3 {[%emt 0:1:35]} Qf4 {[%emt 0:0:3]} 24. Bc3 {[%emt 0:0:38]} bxc4 {[%emt 0:0:33]
} 25. bxc4 {[%emt 0:0:1]} Qg4 {[%emt 0:0:25]} 26. Qc2 {[%emt 0:0:41]
} c5 {[%emt 0:0:11]} 27. h3 {[%emt 0:0:17]} Qh4 {[%emt 0:0:10]
} 28. dxc5 {[%emt 0:0:41]} Qxc4 {[%emt 0:0:2]} 29. Qe2 {[%emt 0:0:51]} Qxc5 {[%emt 0:1:25]} 30. Bxf6 {[%emt 0:0:36]} gxf6 31. Rb1 Rab8 {[%emt 0:1:13]} 32. Rg3+ {[%emt 0:0:43]} Kf8 {[%emt 0:0:10]} 33. Rxb8 {[%emt 0:0:2]} Rxb8 34. Qd2 Ke7 {[%emt 0:0:31]} 35. Kh2 {[%emt 0:0:34]} h5 {[%emt 0:0:19]} 36. Rd3 {[%emt 0:0:20]} Qc7+ {[%emt 0:0:12]} 37. f4 {[%emt 0:0:28]} Rb4 {[%emt 0:1:12]
} 38. Rd4 {[%emt 0:0:2]} Rxd4 {[%emt 0:0:3]} 39. Qxd4 {[%emt 0:0:1]
} h4 {[%emt 0:0:2]} 40. Qf2 {[%emt 0:0:11]} Qc3 {[%emt 0:0:0]} 41. Qxh4 {[%emt 0:0:19]} Qd4 {[%emt 0:0:1]} 42. Qg3 {[%emt 0:0:18]} Qxa4 {[%emt 0:0:2]} 43. h4 {[%emt 0:0:1]} Qb5 {[%emt 0:0:14]} 44. Qa3+ {[%emt 0:0:29]
} Qb4 {[%emt 0:0:9]} 45. Qe3 {[%emt 0:0:1]} Kf8 {[%emt 0:0:0]} 46. Qg3 {[%emt 0:0:1]} Qc5 {[%emt 0:0:8]} 47. Qg4 {[%emt 0:0:14]} a4 {[%emt 0:0:11]} 48. h5 {[%emt 0:0:5]} Qf5 {[%emt 0:0:6]} 49. Qf3 {[%emt 0:0:0]} Kg7 {[%emt 0:0:5]} 50. g4 {[%emt 0:0:6]} Qc2+ {[%emt 0:0:2]} 51. Kg1 {[%emt 0:0:5]} Qb1+ {[%emt 0:0:4]} 52. Kf2 {[%emt 0:0:8]} Qb2+ {[%emt 0:0:1]
} 53. Ke1 {[%emt 0:0:7]} a3 {[%emt 0:0:7]} 54. h6+ {[%emt 0:0:0]} Kh7 {[%emt 0:0:34]} 55. Qd3+ {[%emt 0:0:11]} Kxh6 {[%emt 0:0:11]} 56. g5+ {[%emt 0:0:8]} fxg5 {[%emt 0:0:3]} 57. fxg5+ {[%emt 0:0:2]} Kg7 {[%emt 0:0:2]
} 0-1

[Event "FIDE World Rapid-ch Open 2018"]
[White "Mamedyarov, Shakhriyar"]
[Black "Giri, Anish"]
[Site "St. Petersburg"]
[Round "9.4"]
[Annotator "RC"]
[Result "1/2-1/2"]
[Date "2018.12.27"]
[WhiteElo "2817"]
[BlackElo "2783"]
[PlyCount "47"]
[TimeControl "900+10"]

1. d4 {[%emt 0:0:0]} Nf6 {[%emt 0:0:0]} 2. c4 {[%emt 0:0:0]} e6 {[%emt 0:0:0]} 3. Nf3 {[%emt 0:0:0]} d5 {[%emt 0:0:0]} 4. Bg5 {[%emt 0:0:2]} Be7 {[%emt 0:0:0]} 5. e3 {[%emt 0:0:21]} h6 {[%emt 0:0:4]} 6. Bxf6 {[%emt 0:0:0]} Bxf6 {[%emt 0:0:1]} 7. Qc2 {[%emt 0:0:1]} 0-0 {[%emt 0:0:19]} 8. Nc3 {[%emt 0:0:28]} dxc4 {[%emt 0:1:39]} 9. 0-0-0 {[%emt 0:0:45]} c5 {[%emt 0:1:40]
} 10. dxc5 {[%emt 0:1:50]} Qa5 {[%emt 0:0:2]} 11. Ne4 {[%emt 0:0:1]
} Qxa2 {[%emt 0:0:17]} 12. Nxf6+ {[%emt 0:0:22]} gxf6 {[%emt 0:0:0]} 13. Bxc4 {[%emt 0:1:54]} Qa1+ {[%emt 0:0:3]} 14. Kd2 {[%emt 0:0:17]
} Qa5+ {[%emt 0:0:2]} 15. Ke2 {[%emt 0:0:20]} Qxc5 {[%emt 0:0:10]} 16. Qe4 {[%emt 0:0:18]} Bd7 {[%emt 0:1:37]} 17. Bd3 {[%emt 0:1:58]} f5 {[%emt 0:0:0]} 18. Qf4 {[%emt 0:0:2]} Bb5 {[%emt 0:0:21]} 19. Qxh6 {[%emt 0:1:28]} Qc2+ {[%emt 0:0:1]} 20. Ke1 {[%emt 0:0:10]} Bxd3 {[%emt 0:0:1]} 21. Nd4 {[%emt 0:2:5]
} Qc4 {[%emt 0:0:18]} 22. Qg5+ {[%emt 0:2:13]} Kh7 {[%emt 0:0:0]} 23. Qh5+ {[%emt 0:0:5]} Kg7 {[%emt 0:0:17]} 24. Qg5+ 1/2-1/2

[Event "FIDE World Rapid-ch Open 2018"]
[White "Nepomniachtchi, Ian"]
[Black "Saric, Ivan"]
[Site "St. Petersburg"]
[Round "9.5"]
[Annotator "RC"]
[Result "1-0"]
[Date "2018.12.27"]
[WhiteElo "2763"]
[BlackElo "2695"]
[PlyCount "61"]
[TimeControl "900+10"]

1. c4 {[%emt 0:0:0]} c6 {[%emt 0:0:0]} 2. Nf3 d5 3. e3 {[%emt 0:0:0]} Nf6 {[%emt 0:0:0]} 4. Nc3 {[%emt 0:0:0]} e6 {[%emt 0:0:1]} 5. b3 {[%emt 0:0:0]} Bd6 {[%emt 0:0:2]} 6. Bb2 {[%emt 0:0:2]} 0-0 {[%emt 0:0:5]} 7. Be2 {[%emt 0:0:5]
} Nbd7 {[%emt 0:0:6]} 8. Rc1 {[%emt 0:0:17]} a6 {[%emt 0:0:0]} 9. d4 {[%emt 0:0:5]} Re8 {[%emt 0:0:9]} 10. 0-0 {[%emt 0:0:4]} e5 {[%emt 0:0:12]
} 11. dxe5 {[%emt 0:0:7]} Nxe5 {[%emt 0:0:6]} 12. cxd5 {[%emt 0:0:3]
} c5 {[%emt 0:3:5]} 13. Nxe5 {[%emt 0:0:28]} Bxe5 {[%emt 0:0:0]} 14. Bf3 {[%emt 0:0:8]} Qd6 {[%emt 0:0:47]} 15. h3 {[%emt 0:0:8]} b5 {[%emt 0:0:27]
} 16. Qc2 {[%emt 0:0:20]} Bb7 {[%emt 0:0:14]} 17. Rfd1 {[%emt 0:0:2]
} Rad8 {[%emt 0:0:5]} 18. Ne2 {[%emt 0:0:24]} Bxb2 {[%emt 0:0:0]} 19. Qxb2 {[%emt 0:0:1]} Qb6 {[%emt 0:3:47]} 20. Nf4 {[%emt 0:0:20]} Rd6 {[%emt 0:1:5]} 21. Qc3 {[%emt 0:0:25]} g5 {[%emt 0:0:40]} 22. Ne6 {[%emt 0:0:42]
} fxe6 {[%emt 0:0:1]} 23. Qxf6 {[%emt 0:0:2]} exd5 {[%emt 0:0:0]} 24. Qxg5+ {[%emt 0:0:6]} Kh8 {[%emt 0:0:22]} 25. Qh5 {[%emt 0:2:44]
} Red8 {[%emt 0:0:48]} 26. Qe5+ {[%emt 0:0:13]} Kg8 {[%emt 0:0:0]} 27. Rd2 {[%emt 0:0:1]} Re6 {[%emt 0:1:37]} 28. Qc3 {[%emt 0:0:19]} b4 {[%emt 0:0:0]} 29. Qc2 {[%emt 0:1:16]} Qd6 {[%emt 0:1:49]} 30. Bg4 {[%emt 0:0:13]} Rg6 {[%emt 0:2:18]} 31. Qxc5 {[%emt 0:0:8]} 1-0

[Event "FIDE World Rapid-ch Open 2018"]
[White "Sjugirov, Sanan"]
[Black "Yu, Yangyi"]
[Site "St. Petersburg"]
[Round "9.6"]
[Annotator "RC"]
[Result "0-1"]
[Date "2018.12.27"]
[WhiteElo "2663"]
[BlackElo "2764"]
[PlyCount "116"]
[TimeControl "900+10"]

1. d4 {[%emt 0:0:0]} Nf6 {[%emt 0:0:0]} 2. c4 {[%emt 0:0:0]} e6 {[%emt 0:0:0]} 3. Nc3 {[%emt 0:0:6]} Bb4 {[%emt 0:0:0]} 4. Qc2 {[%emt 0:0:2]} d5 {[%emt 0:0:4]} 5. cxd5 {[%emt 0:0:2]} exd5 {[%emt 0:0:34]} 6. Bg5 {[%emt 0:0:5]
} h6 {[%emt 0:0:2]} 7. Bh4 {[%emt 0:0:2]} Nc6 {[%emt 0:0:57]
} 8. e3 {[%emt 0:0:50]} g5 {[%emt 0:0:10]} 9. Bg3 {[%emt 0:0:2]} h5 {[%emt 0:0:22]
} 10. Bb5 {[%emt 0:1:18]} h4 {[%emt 0:0:12]} 11. Be5 {[%emt 0:0:0]} Rh6 {[%emt 0:0:6]} 12. h3 {[%emt 0:1:43]} Ne4 {[%emt 0:2:11]} 13. Nge2 {[%emt 0:0:30]} Bf5 {[%emt 0:1:24]} 14. Qb3 {[%emt 0:1:24]} Bxc3+ {[%emt 0:1:25]
} 15. Nxc3 {[%emt 0:0:54]} Nxc3 {[%emt 0:0:21]} 16. bxc3 {[%emt 0:0:19]
} Qd7 {[%emt 0:0:26]} 17. Bh2 {[%emt 0:1:41]} 0-0-0 {[%emt 0:0:0]} 18. Qa4 {[%emt 0:0:56]} Rg8 {[%emt 0:0:50]} 19. f3 {[%emt 0:0:58]} a6 {[%emt 0:0:24]} 20. Be2 {[%emt 0:1:45]} Re8 {[%emt 0:0:4]} 21. Bg1 {[%emt 0:0:4]
} Rhe6 {[%emt 0:1:53]} 22. Bf2 {[%emt 0:0:3]} Qe7 {[%emt 0:0:0]} 23. 0-0 {[%emt 0:0:35]} Qd7 {[%emt 0:1:11]} 24. Rfd1 {[%emt 0:0:46]} Rxe3 {[%emt 0:0:35]} 25. Bxe3 {[%emt 0:0:9]} Rxe3 {[%emt 0:0:1]} 26. Bf1 {[%emt 0:0:15]
} Rxc3 {[%emt 0:1:48]} 27. Rac1 {[%emt 0:0:3]} Rxc1 {[%emt 0:0:0]} 28. Rxc1 {[%emt 0:0:1]} Qe7 {[%emt 0:0:32]} 29. Kf2 {[%emt 0:0:42]} Qf6 {[%emt 0:0:38]} 30. Bxa6 {[%emt 0:2:14]} Qxd4+ {[%emt 0:0:5]} 31. Qxd4 {[%emt 0:0:1]} Nxd4 {[%emt 0:0:1]} 32. Bf1 {[%emt 0:0:5]} b6 {[%emt 0:0:0]} 33. g3 {[%emt 0:0:19]} c5 {[%emt 0:0:35]} 34. f4 {[%emt 0:0:38]} f6 {[%emt 0:0:1]
} 35. fxg5 {[%emt 0:0:8]} fxg5 36. gxh4 gxh4 {[%emt 0:0:13]} 37. Rc3 {[%emt 0:1:8]} Kd7 {[%emt 0:0:20]} 38. Ra3 {[%emt 0:0:3]} c4 {[%emt 0:0:10]
} 39. Ra8 {[%emt 0:0:30]} c3 {[%emt 0:0:21]} 40. Ke3 {[%emt 0:0:0]} Ne6 {[%emt 0:0:13]} 41. Ke2 {[%emt 0:0:23]} d4 {[%emt 0:0:4]} 42. Kd1 {[%emt 0:0:5]} Kd6 {[%emt 0:0:33]} 43. Rh8 {[%emt 0:0:9]} Ke5 {[%emt 0:0:33]
} 44. Rxh4 {[%emt 0:0:2]} Nf4 {[%emt 0:0:1]} 45. Rh8 {[%emt 0:0:10]
} d3 {[%emt 0:0:5]} 46. Re8+ {[%emt 0:0:15]} Kd4 {[%emt 0:0:0]} 47. Rd8+ {[%emt 0:0:16]} Ke3 {[%emt 0:0:6]} 48. Bxd3 {[%emt 0:0:13]} Bxd3 {[%emt 0:0:6]} 49. Re8+ {[%emt 0:0:1]} Be4 {[%emt 0:0:15]} 50. Rc8 {[%emt 0:0:3]
} Kd3 {[%emt 0:0:15]} 51. h4 {[%emt 0:0:5]} Bf3+ {[%emt 0:0:0]} 52. Kc1 {[%emt 0:0:1]} Ne2+ {[%emt 0:0:9]} 53. Kb1 {[%emt 0:0:0]} Be4 {[%emt 0:0:18]} 54. h5 {[%emt 0:0:14]} Kd2+ {[%emt 0:0:9]} 55. Ka1 {[%emt 0:0:1]
} c2 {[%emt 0:0:20]} 56. Kb2 {[%emt 0:0:5]} c1=Q+ {[%emt 0:0:0]} 57. Rxc1 {[%emt 0:0:2]} Nxc1 {[%emt 0:0:1]} 58. h6 {[%emt 0:0:2]} Nxa2 {[%emt 0:0:18]} 0-1

[Event "FIDE World Rapid-ch Open 2018"]
[White "Dubov, Daniil"]
[Black "Svidler, Peter"]
[Site "St. Petersburg"]
[Round "9.7"]
[Annotator "RC"]
[Result "1/2-1/2"]
[Date "2018.12.27"]
[WhiteElo "2703"]
[BlackElo "2737"]
[PlyCount "37"]
[TimeControl "900+10"]

1. d4 {[%emt 0:0:0]} Nf6 {[%emt 0:0:5]} 2. Nf3 {[%emt 0:0:0]} g6 {[%emt 0:0:1]
} 3. Nbd2 {[%emt 0:0:0]} Bg7 {[%emt 0:0:7]} 4. e4 {[%emt 0:0:0]} d6 {[%emt 0:0:1]} 5. Bb5+ {[%emt 0:0:0]} c6 {[%emt 0:0:20]} 6. Bd3 {[%emt 0:0:2]} 0-0 {[%emt 0:0:5]} 7. 0-0 {[%emt 0:0:2]} c5 {[%emt 0:0:0]} 8. d5 {[%emt 0:0:8]} e6 {[%emt 0:0:10]} 9. c4 {[%emt 0:0:4]} Re8 {[%emt 0:0:17]
} 10. Rb1 {[%emt 0:0:22]} Na6 {[%emt 0:0:21]} 11. a3 {[%emt 0:0:0]} exd5 {[%emt 0:0:40]} 12. exd5 {[%emt 0:0:15]} Nc7 {[%emt 0:0:23]} 13. b3 {[%emt 0:0:45]} b5 {[%emt 0:1:34]} 14. Qc2 {[%emt 0:0:30]} Rb8 {[%emt 0:0:14]
} 15. Bb2 {[%emt 0:0:9]} Bd7 {[%emt 0:0:3]} 16. Bc3 {[%emt 0:0:0]} Na8 {[%emt 0:0:4]} 17. Rfe1 {[%emt 0:0:42]} Nb6 {[%emt 0:1:45]} 18. Rxe8+ {[%emt 0:0:14]} Bxe8 {[%emt 0:0:7]} 19. Qc1 {[%emt 0:2:2]} 1/2-1/2

[Event "FIDE World Rapid-ch Open 2018"]
[White "Kamsky, Gata"]
[Black "Firouzja, Alireza"]
[Site "St. Petersburg"]
[Round "9.8"]
[Annotator "ChessBase"]
[Result "1/2-1/2"]
[Date "2018.12.27"]
[WhiteElo "2666"]
[BlackElo "2607"]
[PlyCount "78"]
[TimeControl "900+10"]

1. d4 {[%emt 0:0:0]} Nf6 {[%emt 0:0:0]} 2. Nf3 {[%emt 0:0:0]} g6 {[%emt 0:1:5]
} 3. c3 {[%emt 0:0:31]} Bg7 {[%emt 0:0:15]} 4. Bf4 {[%emt 0:0:0]} 0-0 {[%emt 0:0:21]} 5. Nbd2 {[%emt 0:0:33]} d6 {[%emt 0:0:12]} 6. h3 {[%emt 0:0:4]
} c5 {[%emt 0:0:36]} 7. dxc5 {[%emt 0:0:17]} dxc5 {[%emt 0:0:0]} 8. e4 {[%emt 0:0:12]} Nc6 {[%emt 0:0:4]} 9. Be2 {[%emt 0:1:5]} Nh5 {[%emt 0:0:16]
} 10. Bh2 {[%emt 0:2:19]} Bh6 {[%emt 0:0:33]} 11. g4 {[%emt 0:0:0]} Bxd2+ {[%emt 0:2:35]} 12. Qxd2 {[%emt 0:0:6]} Qxd2+ {[%emt 0:0:37]} 13. Nxd2 {[%emt 0:0:19]} Ng7 {[%emt 0:0:6]} 14. Nc4 {[%emt 0:1:47]} Be6 {[%emt 0:0:57]
} 15. 0-0-0 {[%emt 0:0:44]} f5 {[%emt 0:1:27]} 16. exf5 {[%emt 0:0:24]
} gxf5 {[%emt 0:0:1]} 17. f3 {[%emt 0:0:51]} Rad8 {[%emt 0:0:0]} 18. Bg3 {[%emt 0:1:11]} f4 {[%emt 0:2:1]} 19. Bf2 {[%emt 0:0:14]} b6 {[%emt 0:0:5]
} 20. a4 {[%emt 0:0:15]} Kh8 {[%emt 0:0:38]} 21. Rhe1 {[%emt 0:0:0]} Bd5 {[%emt 0:0:5]} 22. b3 {[%emt 0:1:37]} Ne6 {[%emt 0:0:58]} 23. h4 {[%emt 0:0:14]} Kg7 {[%emt 0:0:7]} 24. Kc2 {[%emt 0:0:17]} h6 {[%emt 0:0:0]} 25. Rd2 {[%emt 0:0:25]} Kf6 {[%emt 0:0:19]} 26. Red1 {[%emt 0:0:31]} Nc7 {[%emt 0:0:5]} 27. Na3 {[%emt 0:0:45]} Be6 {[%emt 0:1:8]} 28. Rxd8 {[%emt 0:0:58]
} Rxd8 {[%emt 0:0:31]} 29. Rxd8 {[%emt 0:0:18]} Nxd8 {[%emt 0:0:0]} 30. b4 {[%emt 0:0:16]} Bd7 {[%emt 0:1:27]} 31. a5 {[%emt 0:0:22]} cxb4 {[%emt 0:0:22]} 32. cxb4 {[%emt 0:0:6]} bxa5 {[%emt 0:0:9]} 33. bxa5 {[%emt 0:0:3]} Nc6 {[%emt 0:0:1]} 34. Kd2 {[%emt 0:0:38]} Nxa5 {[%emt 0:0:0]} 35. Bxa7 {[%emt 0:0:16]} Nc6 {[%emt 0:0:17]} 36. Bf2 {[%emt 0:0:18]} e5 {[%emt 0:0:12]} 37. Nb5 {[%emt 0:0:31]} Nxb5 {[%emt 0:0:20]} 38. Bxb5 {[%emt 0:0:1]
} Nb8 {[%emt 0:0:1]} 39. Ba7 {[%emt 0:0:54]} Bxb5 {[%emt 0:0:0]} 1/2-1/2

[Event "FIDE World Rapid-ch Open 2018"]
[White "Guseinov, Gadir"]
[Black "Timofeev, Artyom"]
[Site "St. Petersburg"]
[Round "9.9"]
[Annotator "ChessBase"]
[Result "1/2-1/2"]
[Date "2018.12.27"]
[WhiteElo "2664"]
[BlackElo "2589"]
[PlyCount "102"]
[TimeControl "900+10"]

1. e4 {[%emt 0:0:36]} e5 {[%emt 0:0:0]} 2. Nf3 {[%emt 0:0:3]} Nf6 {[%emt 0:0:0]
} 3. d4 {[%emt 0:0:3]} Nxe4 {[%emt 0:0:2]} 4. Bd3 {[%emt 0:0:0]} d5 {[%emt 0:0:3]} 5. Nxe5 {[%emt 0:0:2]} Be7 {[%emt 0:0:47]} 6. 0-0 {[%emt 0:0:5]} 0-0 {[%emt 0:0:2]} 7. c4 {[%emt 0:0:1]} Nf6 {[%emt 0:0:0]} 8. Nc3 {[%emt 0:0:14]} Be6 {[%emt 0:1:24]} 9. c5 {[%emt 0:0:18]} c6 {[%emt 0:1:41]} 10. Bf4 {[%emt 0:0:18]} Nbd7 {[%emt 0:0:10]} 11. b4 {[%emt 0:0:15]
} Nxe5 {[%emt 0:1:50]} 12. Bxe5 {[%emt 0:0:2]} Nd7 {[%emt 0:0:0]} 13. Bf4 {[%emt 0:0:34]} Bf6 {[%emt 0:0:21]} 14. Bc2 {[%emt 0:0:57]} Re8 {[%emt 0:0:10]} 15. Qd2 {[%emt 0:2:2]} Nf8 {[%emt 0:0:42]} 16. b5 {[%emt 0:0:25]
} Bd7 {[%emt 0:0:7]} 17. Rab1 {[%emt 0:0:26]} Ne6 {[%emt 0:0:0]} 18. Be3 {[%emt 0:0:1]} g6 {[%emt 0:0:7]} 19. bxc6 {[%emt 0:0:14]} Bxc6 {[%emt 0:0:18]} 20. Rfd1 {[%emt 0:1:4]} b6 {[%emt 0:0:13]} 21. cxb6 {[%emt 0:0:55]
} axb6 {[%emt 0:0:3]} 22. a4 {[%emt 0:0:7]} Qc7 {[%emt 0:0:0]} 23. Bb3 {[%emt 0:0:22]} Red8 {[%emt 0:0:5]} 24. h3 {[%emt 0:0:10]} h5 {[%emt 0:0:36]} 25. Qa2 {[%emt 0:0:56]} Qd7 {[%emt 0:0:7]} 26. Qd2 {[%emt 0:0:12]
} Qc7 {[%emt 0:0:19]} 27. Qe2 {[%emt 0:0:23]} Bg7 {[%emt 0:0:0]} 28. Qf3 {[%emt 0:0:24]} Ra5 {[%emt 0:0:33]} 29. Qe2 {[%emt 0:0:22]} Raa8 {[%emt 0:0:19]} 30. Qb2 {[%emt 0:0:9]} Qd6 {[%emt 0:0:40]} 31. Bc2 {[%emt 0:0:30]
} Rdb8 {[%emt 0:0:3]} 32. Nb5 {[%emt 0:0:8]} Qd7 {[%emt 0:0:0]} 33. Qb4 {[%emt 0:0:17]} Bf8 {[%emt 0:0:10]} 34. Qd2 {[%emt 0:0:4]} Bg7 {[%emt 0:0:2]} 35. Qb4 {[%emt 0:0:20]} Bf8 {[%emt 0:0:2]} 36. Qb3 {[%emt 0:0:5]
} Bg7 {[%emt 0:0:5]} 37. Nc3 {[%emt 0:0:32]} Qd6 {[%emt 0:0:0]} 38. Qb4 {[%emt 0:0:6]} Qd7 {[%emt 0:0:23]} 39. Qb2 {[%emt 0:0:26]} Qd6 {[%emt 0:0:4]} 40. Bb3 {[%emt 0:0:3]} Ra5 {[%emt 0:0:21]} 41. Qd2 {[%emt 0:0:13]
} Rb7 {[%emt 0:0:21]} 42. Bc2 {[%emt 0:0:23]} Qd7 {[%emt 0:0:0]} 43. Rb2 {[%emt 0:0:7]} Bf6 {[%emt 0:0:42]} 44. Rdb1 {[%emt 0:0:19]} Qd8 {[%emt 0:0:7]} 45. Ra2 {[%emt 0:0:32]} Qd7 {[%emt 0:0:13]} 46. Bd1 {[%emt 0:0:29]
} Kg7 {[%emt 0:0:16]} 47. Rab2 {[%emt 0:0:42]} Qd8 {[%emt 0:0:0]} 48. Bh6+ {[%emt 0:0:29]} Kh7 {[%emt 0:0:5]} 49. Be3 {[%emt 0:0:1]} Kg7 {[%emt 0:0:1]} 50. Bh6+ {[%emt 0:0:36]} Kh7 {[%emt 0:0:1]} 51. Be3 {[%emt 0:0:0]
} Kg7 {[%emt 0:0:1]} 1/2-1/2

[Event "FIDE World Rapid-ch Open 2018"]
[White "Gelfand, Boris"]
[Black "Alekseev, Evgeny"]
[Site "St. Petersburg"]
[Round "9.10"]
[Annotator "ChessBase"]
[Result "1-0"]
[Date "2018.12.27"]
[WhiteElo "2673"]
[BlackElo "2639"]
[PlyCount "64"]
[TimeControl "900+10"]

1. d4 {[%emt 0:0:0]} e6 {[%emt 0:0:0]} 2. e4 {[%emt 0:0:17]} d5 {[%emt 0:0:0]} 3. exd5 {[%emt 0:0:10]} exd5 {[%emt 0:0:10]} 4. Nf3 {[%emt 0:0:10]} Nc6 {[%emt 0:0:31]} 5. Bb5 {[%emt 0:0:10]} Bd6 {[%emt 0:0:11]} 6. c4 dxc4 {[%emt 0:0:11]
} 7. d5 {[%emt 0:0:54]} a6 {[%emt 0:0:10]} 8. Ba4 {[%emt 0:0:0]} b5 {[%emt 0:0:12]} 9. dxc6 {[%emt 0:0:11]} bxa4 {[%emt 0:0:10]} 10. 0-0 {[%emt 0:0:22]} Ne7 {[%emt 0:0:16]} 11. Qxa4 {[%emt 0:0:10]} 0-0 {[%emt 0:0:0]} 12. Nbd2 {[%emt 0:0:29]} Rb8 {[%emt 0:1:21]} 13. a3 {[%emt 0:1:31]} c3 {[%emt 0:4:34]} 14. bxc3 {[%emt 0:0:10]} Qe8 {[%emt 0:4:10]} 15. Nd4 {[%emt 0:0:11]
} Bb7 {[%emt 0:0:44]} 16. Re1 {[%emt 0:0:40]} Bxc6 {[%emt 0:0:0]} 17. Qxa6 {[%emt 0:0:10]} Ba8 {[%emt 0:0:13]} 18. Ne4 {[%emt 0:3:48]} Be5 {[%emt 0:1:58]} 19. Qd3 {[%emt 0:2:33]} Qd7 {[%emt 0:0:33]} 20. Ng5 {[%emt 0:0:58]
} Ng6 {[%emt 0:0:38]} 21. Rxe5 {[%emt 0:0:19]} f6 {[%emt 0:0:0]} 22. Qf5 {[%emt 0:0:28]} Qa4 {[%emt 0:0:26]} 23. Re1 {[%emt 0:1:18]} fxg5 {[%emt 0:0:10]} 24. Qxg5 {[%emt 0:0:10]} Rf6 {[%emt 0:0:10]} 25. f3 {[%emt 0:2:2]
} Rbf8 {[%emt 0:0:10]} 26. Qc5 {[%emt 0:0:26]} h6 {[%emt 0:0:0]} 27. Qxc7 {[%emt 0:0:26]} Qa6 {[%emt 0:0:10]} 28. Qg3 {[%emt 0:0:17]} Qd3 {[%emt 0:0:10]} 29. Be3 {[%emt 0:0:17]} Ne7 {[%emt 0:0:11]} 30. Bxh6 {[%emt 0:0:31]
} Rxh6 {[%emt 0:0:10]} 31. Rxe7 {[%emt 0:0:10]} Rg6 {[%emt 0:0:0]} 32. Qf2 {[%emt 0:0:10]} Bxf3 {[%emt 0:0:21]} 1-0

[Event "FIDE World Rapid-ch Open 2018"]
[White "Alekseenko, Kirill"]
[Black "Oparin, Grigoriy"]
[Site "St. Petersburg"]
[Round "9.11"]
[Annotator "ChessBase"]
[Result "0-1"]
[Date "2018.12.27"]
[WhiteElo "2638"]
[BlackElo "2613"]
[PlyCount "70"]
[TimeControl "900+10"]

1. e4 {[%emt 0:0:0]} c6 {[%emt 0:0:0]} 2. d4 {[%emt 0:0:7]} d5 {[%emt 0:0:0]} 3. exd5 {[%emt 0:0:5]} cxd5 {[%emt 0:0:0]} 4. Bd3 {[%emt 0:0:1]} Nf6 {[%emt 0:0:0]} 5. h3 {[%emt 0:0:4]} Nc6 {[%emt 0:0:0]} 6. c3 {[%emt 0:0:2]
} g6 {[%emt 0:0:5]} 7. Nf3 {[%emt 0:0:3]} Qc7 {[%emt 0:0:11]
} 8. 0-0 {[%emt 0:0:8]} Bf5 {[%emt 0:0:2]} 9. Re1 {[%emt 0:0:17]} Bg7 {[%emt 0:0:8]
} 10. Bxf5 {[%emt 0:0:33]} gxf5 {[%emt 0:0:2]} 11. Ne5 {[%emt 0:0:14]
} Ne4 {[%emt 0:1:25]} 12. Nd3 {[%emt 0:0:5]} e6 {[%emt 0:0:0]} 13. f3 {[%emt 0:0:22]} Nd6 {[%emt 0:0:7]} 14. Bf4 {[%emt 0:0:8]} Rg8 {[%emt 0:0:38]} 15. Na3 {[%emt 0:1:10]} Qe7 {[%emt 0:1:31]} 16. Nc5 {[%emt 0:0:57]
} Bf6 {[%emt 0:0:59]} 17. Qa4 {[%emt 0:1:2]} Bh4 {[%emt 0:0:0]} 18. Re2 {[%emt 0:2:30]} 0-0-0 {[%emt 0:7:5]} 19. b4 {[%emt 0:1:27]} Bg3 {[%emt 0:0:1]} 20. Bd2 {[%emt 0:1:1]} Qc7 {[%emt 0:0:41]} 21. Rc1 {[%emt 0:0:58]
} Kb8 {[%emt 0:0:34]} 22. Be3 {[%emt 0:0:37]} Ka8 {[%emt 0:0:0]} 23. c4 {[%emt 0:1:32]} dxc4 {[%emt 0:0:20]} 24. Nxc4 {[%emt 0:0:1]} b5 {[%emt 0:0:31]} 25. Na6 {[%emt 0:0:46]} Qb7 {[%emt 0:0:14]} 26. Nxd6 {[%emt 0:0:17]
} Rxd6 {[%emt 0:0:3]} 27. Qxb5 {[%emt 0:0:11]} Nxd4 {[%emt 0:0:0]} 28. Bxd4 {[%emt 0:1:36]} Rxd4 {[%emt 0:0:4]} 29. Qa4 {[%emt 0:1:17]
} Rgd8 {[%emt 0:0:1]} 30. Nc5 {[%emt 0:0:3]} Qb6 {[%emt 0:0:15]} 31. Qc2 {[%emt 0:1:37]
} Qd6 {[%emt 0:0:30]} 32. Rf2 {[%emt 0:0:29]} Bxf2+ {[%emt 0:0:0]} 33. Qxf2 {[%emt 0:0:2]} Rd2 {[%emt 0:0:11]} 34. Qh4 {[%emt 0:0:38]} Rg8 {[%emt 0:0:13]} 35. g4 {[%emt 0:0:6]} Qh2+ {[%emt 0:0:2]} 0-1